[Event "Live Chess"]
[Site "Chess.com"]
[Date "2023.05.21"]
[Round "-"]
[White "Jo1ts"]
[Black "peter-785"]
[Result "1/2-1/2"]
[WhiteElo "848"]
[BlackElo "1213"]
[TimeControl "300"]
[EndTime "23:35:53 PDT"]
[Termination "Game drawn by repetition"]

1. d4 {[%clk 0:04:59]} 1... d5 {[%clk 0:04:57.7]} 2. Bf4 {[%clk 0:04:58.3]} 2...
c6 {[%clk 0:04:56.9]} 3. Nf3 {[%clk 0:04:57]} 3... e6 {[%clk 0:04:56.5]} 4. e3
{[%clk 0:04:56.3]} 4... Nf6 {[%clk 0:04:56]} 5. Nbd2 {[%clk 0:04:55.2]} 5... Be7
{[%clk 0:04:55.4]} 6. Bd3 {[%clk 0:04:54.4]} 6... O-O {[%clk 0:04:54.7]} 7. c3
{[%clk 0:04:53.9]} 7... a6 {[%clk 0:04:48.7]} 8. Qc2 {[%clk 0:04:53.1]} 8... h6
{[%clk 0:04:45.8]} 9. Ne5 {[%clk 0:04:47.1]} 9... Nbd7 {[%clk 0:04:42.9]} 10. g4
{[%clk 0:04:45.6]} 10... Nxe5 {[%clk 0:04:39.1]} 11. dxe5 {[%clk 0:04:42.9]}
11... Nxg4 {[%clk 0:04:25.7]} 12. Rg1 {[%clk 0:04:39.3]} 12... h5 {[%clk
0:04:04.6]} 13. h3 {[%clk 0:04:33.2]} 13... Nf6 {[%clk 0:03:59]} 14. exf6 {[%clk
0:04:30.4]} 14... Bxf6 {[%clk 0:03:56.8]} 15. Nf3 {[%clk 0:04:24.7]} 15... e5
{[%clk 0:03:29.7]} 16. Bxe5 {[%clk 0:04:15.2]} 16... Bxe5 {[%clk 0:03:14.4]} 17.
Nxe5 {[%clk 0:04:12.6]} 17... Qf6 {[%clk 0:03:11.1]} 18. f4 {[%clk 0:04:04]}
18... Kh8 {[%clk 0:02:52.5]} 19. Qe2 {[%clk 0:03:59.8]} 19... g6 {[%clk
0:02:51.2]} 20. O-O-O {[%clk 0:03:54.8]} 20... Bf5 {[%clk 0:02:50.5]} 21. Bxf5
{[%clk 0:03:43.6]} 21... Qxf5 {[%clk 0:02:43.9]} 22. Rg5 {[%clk 0:03:30]} 22...
Qxh3 {[%clk 0:02:33.4]} 23. Qg2 {[%clk 0:03:16.3]} 23... Qxe3+ {[%clk
0:02:29.5]} 24. Kb1 {[%clk 0:03:07.2]} 24... Qe4+ {[%clk 0:02:26.5]} 25. Qxe4
{[%clk 0:03:03.2]} 25... dxe4 {[%clk 0:02:25.8]} 26. Rd4 {[%clk 0:02:54.2]}
26... e3 {[%clk 0:02:17.1]} 27. Re4 {[%clk 0:02:52]} 27... Kh7 {[%clk
0:02:06.4]} 28. Nf3 {[%clk 0:02:44.7]} 28... Rae8 {[%clk 0:02:00.1]} 29. Rxe8
{[%clk 0:02:36.9]} 29... Rxe8 {[%clk 0:01:58.8]} 30. Re5 {[%clk 0:02:33.9]}
30... Rxe5 {[%clk 0:01:54.8]} 31. Nxe5 {[%clk 0:02:32]} 31... Kg7 {[%clk
0:01:51.3]} 32. Kc2 {[%clk 0:02:29.5]} 32... Kf6 {[%clk 0:01:44.6]} 33. Kd3
{[%clk 0:02:28.5]} 33... e2 {[%clk 0:01:42.2]} 34. Kxe2 {[%clk 0:02:26.9]} 34...
Ke6 {[%clk 0:01:22.5]} 35. Ke3 {[%clk 0:02:21.9]} 35... h4 {[%clk 0:01:14.3]}
36. Nc4 {[%clk 0:02:03.1]} 36... f5 {[%clk 0:01:06.2]} 37. Kf3 {[%clk
0:02:01.6]} 37... Kf6 {[%clk 0:01:01]} 38. Kg2 {[%clk 0:02:00.1]} 38... g5
{[%clk 0:00:59.8]} 39. fxg5+ {[%clk 0:01:58.7]} 39... Kxg5 {[%clk 0:00:59.4]}
40. Kh3 {[%clk 0:01:57.8]} 40... Kf4 {[%clk 0:00:51.6]} 41. Kxh4 {[%clk
0:01:54.9]} 41... Ke4 {[%clk 0:00:47.6]} 42. Nd6+ {[%clk 0:01:54.1]} 42... Ke5
{[%clk 0:00:45.7]} 43. Nxb7 {[%clk 0:01:52.6]} 43... f4 {[%clk 0:00:45.2]} 44.
Kh3 {[%clk 0:01:51]} 44... Ke4 {[%clk 0:00:44.6]} 45. Kg2 {[%clk 0:01:50.2]}
45... Ke3 {[%clk 0:00:43.4]} 46. Kf1 {[%clk 0:01:49.4]} 46... Kd2 {[%clk
0:00:38.5]} 47. Nc5 {[%clk 0:01:47.9]} 47... Kc2 {[%clk 0:00:36.8]} 48. Nxa6
{[%clk 0:01:44.2]} 48... Kxb2 {[%clk 0:00:36]} 49. Nb8 {[%clk 0:01:30.8]} 49...
c5 {[%clk 0:00:34.1]} 50. Na6 {[%clk 0:01:25.2]} 50... Kxa2 {[%clk 0:00:32.4]}
51. Nxc5 {[%clk 0:01:24]} 51... Kb2 {[%clk 0:00:30]} 52. c4 {[%clk 0:01:23.3]}
52... Kc3 {[%clk 0:00:28.7]} 53. Na4+ {[%clk 0:01:10.9]} 53... Kxc4 {[%clk
0:00:27.7]} 54. Nb2+ {[%clk 0:01:10.3]} 54... Kd4 {[%clk 0:00:26.8]} 55. Nd1
{[%clk 0:01:09.3]} 55... Ke4 {[%clk 0:00:25.5]} 56. Kf2 {[%clk 0:01:08.4]} 56...
f3 {[%clk 0:00:24.4]} 57. Nc3+ {[%clk 0:01:07.2]} 57... Kd3 {[%clk 0:00:23.4]}
58. Nd1 {[%clk 0:01:05.1]} 58... Ke4 {[%clk 0:00:20.2]} 59. Nc3+ {[%clk
0:01:03.5]} 59... Kd3 {[%clk 0:00:19.3]} 60. Nd5 {[%clk 0:01:03.1]} 60... Ke4
{[%clk 0:00:18.8]} 61. Nb6 {[%clk 0:01:01.4]} 61... Kd3 {[%clk 0:00:18.3]} 62.
Nd7 {[%clk 0:01:00.9]} 62... Ke4 {[%clk 0:00:18]} 63. Nf6+ {[%clk 0:01:00.3]}
63... Kd3 {[%clk 0:00:17.7]} 64. Ng4 {[%clk 0:00:59.5]} 64... Ke4 {[%clk
0:00:17.5]} 65. Nh2 {[%clk 0:00:57.7]} 65... Kd3 {[%clk 0:00:17]} 66. Ng4 {[%clk
0:00:56.3]} 66... Ke4 {[%clk 0:00:16.2]} 67. Ne3 {[%clk 0:00:55.7]} 67... Kd3
{[%clk 0:00:15.7]} 68. Ke1 {[%clk 0:00:54.3]} 68... Ke4 {[%clk 0:00:14.9]} 69.
Kf2 {[%clk 0:00:52.7]} 69... Kd3 {[%clk 0:00:14.3]} 70. Nd1 {[%clk 0:00:52.1]}
70... Ke4 {[%clk 0:00:13.4]} 1/2-1/2

[Event "Live Chess"]
[Site "Chess.com"]
[Date "2023.05.21"]
[Round "-"]
[White "Rusty_Bridges"]
[Black "MJMykh"]
[Result "1-0"]
[WhiteElo "1497"]
[BlackElo "966"]
[TimeControl "300"]
[EndTime "23:35:58 PDT"]
[Termination "Rusty_Bridges won by resignation"]

1. e4 {[%clk 0:04:57.7]} 1... e5 {[%clk 0:04:58.9]} 2. f4 {[%clk 0:04:56.2]}
2... exf4 {[%clk 0:04:57.9]} 3. Nf3 {[%clk 0:04:55]} 3... Nc6 {[%clk 0:04:55.9]}
4. Bc4 {[%clk 0:04:53.4]} 4... h6 {[%clk 0:04:53.3]} 5. d4 {[%clk 0:04:51.9]}
5... Nf6 {[%clk 0:04:52.5]} 6. e5 {[%clk 0:04:48.7]} 6... Ng8 {[%clk 0:04:37.4]}
7. Bxf4 {[%clk 0:04:46.1]} 7... f6 {[%clk 0:04:36.6]} 8. O-O {[%clk 0:04:41.9]}
8... fxe5 {[%clk 0:04:35.4]} 9. Nxe5 {[%clk 0:04:39.8]} 9... Nxe5 {[%clk
0:04:34.5]} 10. Bxe5 {[%clk 0:04:38.1]} 10... d6 {[%clk 0:04:25.5]} 11. Qh5+
{[%clk 0:04:35.3]} 11... Kd7 {[%clk 0:04:13.2]} 12. Rf7+ {[%clk 0:04:25.2]}
12... Kc6 {[%clk 0:04:11.2]} 13. Qf3+ {[%clk 0:04:16.8]} 13... Kb6 {[%clk
0:04:09.1]} 14. Rxf8 {[%clk 0:04:12]} 14... Qd7 {[%clk 0:04:00.6]} 15. Bg3
{[%clk 0:03:53.2]} 1-0

[Event "Live Chess"]
[Site "Chess.com"]
[Date "2023.05.21"]
[Round "-"]
[White "Duke_of_Bebington"]
[Black "Mikhail_Golubev"]
[Result "0-1"]
[WhiteElo "1583"]
[BlackElo "2492"]
[TimeControl "300"]
[EndTime "23:36:02 PDT"]
[Termination "Mikhail_Golubev won by resignation"]

1. e4 {[%clk 0:04:56.9]} 1... d5 {[%clk 0:04:58]} 2. exd5 {[%clk 0:04:55.6]}
2... Qxd5 {[%clk 0:04:57.2]} 3. d4 {[%clk 0:04:55.2]} 3... Nc6 {[%clk
0:04:54.7]} 4. Nf3 {[%clk 0:04:53.8]} 4... Bg4 {[%clk 0:04:53.5]} 5. Be2 {[%clk
0:04:52.5]} 5... O-O-O {[%clk 0:04:52.5]} 6. Be3 {[%clk 0:04:36.9]} 6... e5
{[%clk 0:04:36.4]} 7. c4 {[%clk 0:04:28.8]} 7... Qa5+ {[%clk 0:04:25.8]} 8. Bd2
{[%clk 0:04:27.4]} 8... Bb4 {[%clk 0:04:16]} 9. d5 {[%clk 0:04:21.9]} 9... Bxf3
{[%clk 0:04:06.3]} 10. Bxf3 {[%clk 0:04:20.8]} 10... Bxd2+ {[%clk 0:03:48.5]}
11. Nxd2 {[%clk 0:04:18.4]} 11... Nd4 {[%clk 0:03:47.2]} 12. O-O {[%clk
0:04:14.7]} 12... Nf6 {[%clk 0:03:45.7]} 13. Re1 {[%clk 0:04:06.2]} 13... Rhe8
{[%clk 0:03:42.1]} 14. Be4 {[%clk 0:04:01.9]} 14... c6 {[%clk 0:02:56.6]} 15.
dxc6 {[%clk 0:03:41]} 15... Nxc6 {[%clk 0:02:55.4]} 16. Bxc6 {[%clk 0:03:25]}
16... Rxd2 {[%clk 0:02:44.3]} 17. Qf3 {[%clk 0:03:08.7]} 17... bxc6 {[%clk
0:02:42.7]} 18. Qxc6+ {[%clk 0:03:07.1]} 18... Kb8 {[%clk 0:02:41.6]} 19. Rad1
{[%clk 0:02:47.8]} 19... Rc8 {[%clk 0:02:35.9]} 20. Qf3 {[%clk 0:02:39.5]} 20...
Rxd1 {[%clk 0:02:23.1]} 21. Rxd1 {[%clk 0:02:33.8]} 21... e4 {[%clk 0:02:22]}
22. Qb3+ {[%clk 0:02:30.8]} 22... Qb6 {[%clk 0:02:14.4]} 23. Qg3+ {[%clk
0:02:18.4]} 23... Ka8 {[%clk 0:01:59.9]} 24. b3 {[%clk 0:02:14.8]} 24... g6
{[%clk 0:01:26.4]} 25. h3 {[%clk 0:02:00.1]} 25... Nh5 {[%clk 0:01:18.1]} 26.
Qc3 {[%clk 0:01:53.4]} 26... f5 {[%clk 0:01:10.1]} 27. Rd5 {[%clk 0:01:41.2]}
27... Nf4 {[%clk 0:01:03.3]} 28. Rd7 {[%clk 0:01:33.8]} 28... Ne2+ {[%clk
0:01:00.9]} 0-1

[Event "Live Chess"]
[Site "Chess.com"]
[Date "2023.05.21"]
[Round "-"]
[White "LaupMiths"]
[Black "KeithArkell"]
[Result "0-1"]
[WhiteElo "1810"]
[BlackElo "2555"]
[TimeControl "300"]
[EndTime "23:36:03 PDT"]
[Termination "KeithArkell won by resignation"]

1. d4 {[%clk 0:04:55.4]} 1... e6 {[%clk 0:04:59]} 2. Nf3 {[%clk 0:04:53.7]} 2...
Nf6 {[%clk 0:04:57.6]} 3. g3 {[%clk 0:04:50.1]} 3... b5 {[%clk 0:04:55.9]} 4.
Bg2 {[%clk 0:04:49.3]} 4... Bb7 {[%clk 0:04:55.4]} 5. O-O {[%clk 0:04:48.8]}
5... c5 {[%clk 0:04:54.8]} 6. dxc5 {[%clk 0:04:44]} 6... Bxc5 {[%clk 0:04:53.3]}
7. b3 {[%clk 0:04:43.5]} 7... b4 {[%clk 0:04:51.2]} 8. Bb2 {[%clk 0:04:42.7]}
8... O-O {[%clk 0:04:50.2]} 9. c4 {[%clk 0:04:40.3]} 9... bxc3 {[%clk
0:04:48.7]} 10. Nxc3 {[%clk 0:04:38.7]} 10... Nc6 {[%clk 0:04:46.2]} 11. Rc1
{[%clk 0:04:33.5]} 11... Be7 {[%clk 0:04:45]} 12. Nb5 {[%clk 0:04:28.3]} 12...
d5 {[%clk 0:04:42.3]} 13. Nbd4 {[%clk 0:04:22.5]} 13... Nxd4 {[%clk 0:04:41.1]}
14. Qxd4 {[%clk 0:04:20.2]} 14... Qb6 {[%clk 0:04:39.5]} 15. Ne5 {[%clk
0:04:12.4]} 15... Qxd4 {[%clk 0:04:37.6]} 16. Bxd4 {[%clk 0:04:10.7]} 16... Rfc8
{[%clk 0:04:36.3]} 17. Nd3 {[%clk 0:04:06.4]} 17... a5 {[%clk 0:04:33.3]} 18.
Rfd1 {[%clk 0:03:59.3]} 18... Ba3 {[%clk 0:04:31.9]} 19. Rc3 {[%clk 0:03:52.2]}
19... Rxc3 {[%clk 0:04:30.1]} 20. Bxc3 {[%clk 0:03:50.9]} 20... Ne4 {[%clk
0:04:27.9]} 21. Be1 {[%clk 0:03:48.8]} 21... h6 {[%clk 0:04:20.4]} 22. h3 {[%clk
0:03:33.2]} 22... a4 {[%clk 0:04:02.3]} 23. b4 {[%clk 0:03:26.9]} 23... Rc8
{[%clk 0:04:01.2]} 24. Bxe4 {[%clk 0:03:12.3]} 24... dxe4 {[%clk 0:03:59.9]} 25.
Nc5 {[%clk 0:03:11.4]} 25... Bd5 {[%clk 0:03:58.1]} 26. Nxa4 {[%clk 0:03:07.3]}
26... Rc2 {[%clk 0:03:51.9]} 27. Rd2 {[%clk 0:02:59.9]} 27... Rc1 {[%clk
0:03:50.8]} 28. Kg2 {[%clk 0:02:26.4]} 28... Rxe1 {[%clk 0:03:48.8]} 29. Rc2
{[%clk 0:02:25.5]} 29... Bxb4 {[%clk 0:03:47]} 30. Nb6 {[%clk 0:02:20.5]} 30...
Ra1 {[%clk 0:03:40.2]} 31. Nxd5 {[%clk 0:02:11.6]} 31... exd5 {[%clk 0:03:40.1]}
32. e3 {[%clk 0:02:10.5]} 32... Rd1 {[%clk 0:03:20.1]} 33. Rb2 {[%clk
0:02:06.7]} 33... Bc3 {[%clk 0:03:17.2]} 34. Rc2 {[%clk 0:02:05.4]} 34... d4
{[%clk 0:03:14.9]} 35. exd4 {[%clk 0:02:03.7]} 35... Bxd4 {[%clk 0:03:14.2]} 36.
Re2 {[%clk 0:02:03.1]} 36... f5 {[%clk 0:03:13.1]} 37. g4 {[%clk 0:01:59.5]}
37... g6 {[%clk 0:03:11.5]} 38. gxf5 {[%clk 0:01:51]} 38... gxf5 {[%clk
0:03:11.4]} 39. f3 {[%clk 0:01:49.2]} 39... Rg1+ {[%clk 0:03:09.3]} 40. Kh2
{[%clk 0:01:46.1]} 40... exf3 {[%clk 0:03:08.4]} 0-1

[Event "Live Chess"]
[Site "Chess.com"]
[Date "2023.05.21"]
[Round "-"]
[White "Conradical12"]
[Black "f4nomore"]
[Result "0-1"]
[WhiteElo "1595"]
[BlackElo "1434"]
[TimeControl "300"]
[EndTime "23:36:26 PDT"]
[Termination "f4nomore won by resignation"]

1. e4 {[%clk 0:04:57.9]} 1... g6 {[%clk 0:04:59.9]} 2. e5 {[%clk 0:04:55.4]}
2... Bg7 {[%clk 0:04:59.8]} 3. Nf3 {[%clk 0:04:53.8]} 3... d6 {[%clk 0:04:57.6]}
4. d4 {[%clk 0:04:52.2]} 4... dxe5 {[%clk 0:04:55.7]} 5. d5 {[%clk 0:04:50.7]}
5... e6 {[%clk 0:04:46]} 6. Bc4 {[%clk 0:04:47.2]} 6... Ne7 {[%clk 0:04:40.1]}
7. O-O {[%clk 0:04:43.7]} 7... exd5 {[%clk 0:04:34.2]} 8. Be2 {[%clk 0:04:34.8]}
8... c6 {[%clk 0:04:31.8]} 9. c3 {[%clk 0:04:28.9]} 9... O-O {[%clk 0:04:29.8]}
10. Be3 {[%clk 0:04:19.3]} 10... Nf5 {[%clk 0:04:26.8]} 11. Nbd2 {[%clk
0:04:12]} 11... Nxe3 {[%clk 0:04:23.6]} 12. fxe3 {[%clk 0:04:09.5]} 12... Qb6
{[%clk 0:04:22.3]} 13. Kf2 {[%clk 0:03:54.2]} 13... Qxb2 {[%clk 0:04:08.9]} 14.
h4 {[%clk 0:03:47.2]} 14... h5 {[%clk 0:04:01.3]} 15. c4 {[%clk 0:03:33.9]}
15... e4 {[%clk 0:03:45.5]} 16. Ng5 {[%clk 0:03:23]} 16... f6 {[%clk 0:03:23]}
0-1

[Event "Live Chess"]
[Site "Chess.com"]
[Date "2023.05.21"]
[Round "-"]
[White "Driftboard"]
[Black "ProfPoisson"]
[Result "0-1"]
[WhiteElo "751"]
[BlackElo "1162"]
[TimeControl "300"]
[EndTime "23:36:39 PDT"]
[Termination "ProfPoisson won by checkmate"]

1. e4 {[%clk 0:04:56.5]} 1... e5 {[%clk 0:04:58.2]} 2. Nf3 {[%clk 0:04:55.5]}
2... Nf6 {[%clk 0:04:56.1]} 3. Nc3 {[%clk 0:04:54.6]} 3... Nc6 {[%clk
0:04:53.3]} 4. Bc4 {[%clk 0:04:54.1]} 4... Nxe4 {[%clk 0:04:51.1]} 5. Nxe4
{[%clk 0:04:51.8]} 5... d5 {[%clk 0:04:49.7]} 6. Bxd5 {[%clk 0:04:50.3]} 6...
Qxd5 {[%clk 0:04:44.6]} 7. Nc3 {[%clk 0:04:49.9]} 7... Qd6 {[%clk 0:04:41.3]} 8.
O-O {[%clk 0:04:49.5]} 8... Bg4 {[%clk 0:04:37.4]} 9. d3 {[%clk 0:04:48.8]} 9...
O-O-O {[%clk 0:04:33.7]} 10. h3 {[%clk 0:04:48.4]} 10... Bh5 {[%clk 0:04:30.5]}
11. Be3 {[%clk 0:04:48.1]} 11... Nd4 {[%clk 0:04:24.8]} 12. Nxd4 {[%clk
0:04:44.7]} 12... exd4 {[%clk 0:04:21.2]} 13. Bxd4 {[%clk 0:04:44.3]} 13... Qxd4
{[%clk 0:04:18.9]} 14. Nb5 {[%clk 0:04:42.9]} 14... Bxd1 {[%clk 0:04:06.7]} 15.
Nxd4 {[%clk 0:04:41.2]} 15... Rxd4 {[%clk 0:04:05.1]} 16. Raxd1 {[%clk 0:04:39]}
16... Bd6 {[%clk 0:04:01.2]} 17. c3 {[%clk 0:04:35]} 17... Rf4 {[%clk
0:03:47.2]} 18. g3 {[%clk 0:04:31.3]} 18... Rf6 {[%clk 0:03:45.7]} 19. h4 {[%clk
0:04:29.1]} 19... h5 {[%clk 0:03:42.2]} 20. Kg2 {[%clk 0:04:28.5]} 20... Re6
{[%clk 0:03:36.7]} 21. Kh3 {[%clk 0:04:26.6]} 21... Re2 {[%clk 0:03:28]} 22. Rb1
{[%clk 0:04:20.3]} 22... f6 {[%clk 0:03:23.3]} 23. g4 {[%clk 0:04:18.6]} 23...
hxg4+ {[%clk 0:03:16.9]} 24. Kxg4 {[%clk 0:04:18.3]} 24... g5 {[%clk 0:03:11.8]}
25. hxg5 {[%clk 0:04:16.2]} 25... fxg5 {[%clk 0:03:09.6]} 26. Kxg5 {[%clk
0:04:15.9]} 26... Rf8 {[%clk 0:02:57.2]} 27. Kg4 {[%clk 0:04:14.3]} 27... Re7
{[%clk 0:02:55.3]} 28. Kg5 {[%clk 0:04:04.5]} 28... Rg7+ {[%clk 0:02:53.9]} 29.
Kh6 {[%clk 0:04:03.3]} 29... Be5 {[%clk 0:02:49.8]} 30. Rg1 {[%clk 0:04:00.5]}
30... Rh8# {[%clk 0:02:47.5]} 0-1

[Event "Live Chess"]
[Site "Chess.com"]
[Date "2023.05.21"]
[Round "-"]
[White "Alan_Richardson"]
[Black "chessfiction"]
[Result "0-1"]
[WhiteElo "1695"]
[BlackElo "2346"]
[TimeControl "300"]
[EndTime "23:36:40 PDT"]
[Termination "chessfiction won on time"]

1. d4 {[%clk 0:04:57.7]} 1... Nf6 {[%clk 0:04:58.6]} 2. Bf4 {[%clk 0:04:55.3]}
2... Nd5 {[%clk 0:04:56.8]} 3. Bg3 {[%clk 0:04:49.3]} 3... h5 {[%clk 0:04:55.4]}
4. h4 {[%clk 0:04:31.5]} 4... g6 {[%clk 0:04:49.4]} 5. e4 {[%clk 0:04:29]} 5...
Nb6 {[%clk 0:04:46.1]} 6. Nf3 {[%clk 0:04:21.2]} 6... Bg7 {[%clk 0:04:44.7]} 7.
c3 {[%clk 0:04:16.8]} 7... d5 {[%clk 0:04:44.1]} 8. e5 {[%clk 0:04:09.4]} 8...
Nc6 {[%clk 0:04:42.6]} 9. Bd3 {[%clk 0:04:05.5]} 9... Bg4 {[%clk 0:04:39.8]} 10.
Nbd2 {[%clk 0:04:01.5]} 10... Qd7 {[%clk 0:04:36.8]} 11. Qc2 {[%clk 0:03:53.2]}
11... O-O-O {[%clk 0:04:35.5]} 12. O-O-O {[%clk 0:03:41.4]} 12... Kb8 {[%clk
0:04:34.4]} 13. Kb1 {[%clk 0:03:33.7]} 13... Na5 {[%clk 0:04:32.9]} 14. Rde1
{[%clk 0:03:20.7]} 14... Nac4 {[%clk 0:04:26.7]} 15. Nxc4 {[%clk 0:02:59.2]}
15... dxc4 {[%clk 0:04:26.6]} 16. Be4 {[%clk 0:02:57.9]} 16... e6 {[%clk
0:04:21.1]} 17. Ng5 {[%clk 0:02:44.4]} 17... Rhf8 {[%clk 0:04:16.4]} 18. f3
{[%clk 0:02:34.4]} 18... Bf5 {[%clk 0:04:14.5]} 19. Rhf1 {[%clk 0:02:26.6]}
19... Nd5 {[%clk 0:04:09.9]} 20. Ka1 {[%clk 0:02:16.6]} 20... a5 {[%clk
0:03:56.6]} 21. Qe2 {[%clk 0:02:03]} 21... Qa4 {[%clk 0:03:45.2]} 22. Bh2 {[%clk
0:01:45.9]} 22... b5 {[%clk 0:03:31.5]} 23. g4 {[%clk 0:01:43.8]} 23... Bxe4
{[%clk 0:03:23.8]} 24. fxe4 {[%clk 0:01:39.7]} 24... Nb6 {[%clk 0:03:20.6]} 25.
gxh5 {[%clk 0:01:21.1]} 25... b4 {[%clk 0:03:17.2]} 26. Nxf7 {[%clk 0:01:04.4]}
26... gxh5 {[%clk 0:03:07.8]} 27. Nxd8 {[%clk 0:01:01.1]} 27... Rxd8 {[%clk
0:03:07.7]} 28. Rf7 {[%clk 0:00:52.7]} 28... b3 {[%clk 0:03:03.1]} 29. a3 {[%clk
0:00:48.7]} 29... Bf8 {[%clk 0:03:02.5]} 30. Kb1 {[%clk 0:00:38.1]} 30... Bxa3
{[%clk 0:03:00.9]} 31. bxa3 {[%clk 0:00:36.3]} 31... Qxa3 {[%clk 0:02:59.9]} 32.
Qb2 {[%clk 0:00:35.3]} 32... Qxb2+ {[%clk 0:02:57.6]} 33. Kxb2 {[%clk
0:00:33.2]} 33... Na4+ {[%clk 0:02:57.5]} 34. Kc1 {[%clk 0:00:26]} 34... Nxc3
{[%clk 0:02:57.4]} 35. Rg1 {[%clk 0:00:21.4]} 35... Rxd4 {[%clk 0:02:54.7]} 36.
Rg8+ {[%clk 0:00:18.3]} 36... Kb7 {[%clk 0:02:53.8]} 37. Rgg7 {[%clk 0:00:17.3]}
37... Nb5 {[%clk 0:02:52.2]} 38. Kb2 {[%clk 0:00:10.5]} 38... a4 {[%clk
0:02:50.4]} 39. Bg1 {[%clk 0:00:08.5]} 39... c3+ {[%clk 0:02:49.2]} 40. Kb1
{[%clk 0:00:03.2]} 40... c2+ {[%clk 0:02:47.9]} 41. Kb2 {[%clk 0:00:00.1]} 41...
a3+ {[%clk 0:02:46.2]} 0-1

[Event "Live Chess"]
[Site "Chess.com"]
[Date "2023.05.21"]
[Round "-"]
[White "WelshTiger"]
[Black "tpm07"]
[Result "1-0"]
[WhiteElo "2356"]
[BlackElo "1930"]
[TimeControl "300"]
[EndTime "23:36:41 PDT"]
[Termination "WelshTiger won by resignation"]

1. e4 {[%clk 0:04:59.2]} 1... e5 {[%clk 0:04:58.5]} 2. Nf3 {[%clk 0:04:57.1]}
2... Nc6 {[%clk 0:04:57.4]} 3. d4 {[%clk 0:04:54.9]} 3... exd4 {[%clk
0:04:54.6]} 4. Bc4 {[%clk 0:04:54]} 4... Nf6 {[%clk 0:04:53.6]} 5. e5 {[%clk
0:04:52.9]} 5... d5 {[%clk 0:04:51.9]} 6. Bb5 {[%clk 0:04:52.1]} 6... Ne4 {[%clk
0:04:50.8]} 7. Nxd4 {[%clk 0:04:50.4]} 7... Bc5 {[%clk 0:04:50.3]} 8. Be3 {[%clk
0:04:48.2]} 8... O-O {[%clk 0:04:42.4]} 9. Nxc6 {[%clk 0:04:46.8]} 9... bxc6
{[%clk 0:04:34.1]} 10. Bxc5 {[%clk 0:04:45.8]} 10... Nxc5 {[%clk 0:04:17.8]} 11.
Bxc6 {[%clk 0:04:44.7]} 11... Ba6 {[%clk 0:04:02.7]} 12. Nc3 {[%clk 0:03:31.1]}
12... d4 {[%clk 0:03:42.4]} 13. Bxa8 {[%clk 0:03:26.7]} 13... Qxa8 {[%clk
0:03:40.7]} 14. Qxd4 {[%clk 0:03:20.1]} 14... Qxg2 {[%clk 0:03:22.7]} 15. O-O-O
{[%clk 0:03:14.4]} 15... Ne6 {[%clk 0:03:21.9]} 16. Qe3 {[%clk 0:03:09.5]} 16...
Rb8 {[%clk 0:03:16.4]} 17. Rhg1 {[%clk 0:02:49.7]} 17... Qb7 {[%clk 0:03:14.5]}
18. b3 {[%clk 0:02:48.6]} 18... c5 {[%clk 0:03:08.5]} 19. Ne4 {[%clk 0:02:37.2]}
19... c4 {[%clk 0:02:59.4]} 20. Nd6 {[%clk 0:02:35.9]} 20... Qb4 {[%clk
0:02:52.1]} 21. Kb1 {[%clk 0:02:14.8]} 21... Nc5 {[%clk 0:02:23]} 22. Qg5 {[%clk
0:02:02.4]} 22... g6 {[%clk 0:02:17.6]} 23. Qf4 {[%clk 0:01:55.7]} 23... Rf8
{[%clk 0:02:05]} 24. Nxc4 {[%clk 0:01:44.5]} 24... Na4 {[%clk 0:02:02.5]} 25.
Qd2 {[%clk 0:01:21.5]} 25... Nc3+ {[%clk 0:01:57.1]} 26. Kb2 {[%clk 0:01:20.5]}
26... Nxd1+ {[%clk 0:01:48]} 27. Rxd1 {[%clk 0:01:20.4]} 27... Qc5 {[%clk
0:01:32.1]} 28. Qd4 {[%clk 0:01:17]} 28... Qe7 {[%clk 0:01:24.1]} 29. Nd6 {[%clk
0:01:15.8]} 29... Rd8 {[%clk 0:01:15.3]} 30. f4 {[%clk 0:01:14.5]} 30... Bc8
{[%clk 0:01:08.3]} 31. a4 {[%clk 0:01:11.8]} 31... Be6 {[%clk 0:01:04.4]} 32. f5
{[%clk 0:01:09]} 32... Bxf5 {[%clk 0:01:03.1]} 33. Nxf5 {[%clk 0:01:06.9]} 33...
gxf5 {[%clk 0:01:02.2]} 34. Qxd8+ {[%clk 0:01:05.4]} 1-0

[Event "Live Chess"]
[Site "Chess.com"]
[Date "2023.05.21"]
[Round "-"]
[White "minenko-1958"]
[Black "hturner40"]
[Result "1-0"]
[WhiteElo "1469"]
[BlackElo "1786"]
[TimeControl "300"]
[EndTime "23:37:23 PDT"]
[Termination "minenko-1958 won on time"]

1. e4 {[%clk 0:04:58]} 1... Nc6 {[%clk 0:04:58.3]} 2. Nf3 {[%clk 0:04:56.3]}
2... e5 {[%clk 0:04:55.5]} 3. Bc4 {[%clk 0:04:52.3]} 3... Nf6 {[%clk 0:04:53.2]}
4. d3 {[%clk 0:04:47.8]} 4... h6 {[%clk 0:04:45.1]} 5. h3 {[%clk 0:04:45.5]}
5... Bc5 {[%clk 0:04:43.5]} 6. c3 {[%clk 0:04:43.4]} 6... O-O {[%clk 0:04:26.9]}
7. b4 {[%clk 0:04:41.5]} 7... Bb6 {[%clk 0:04:24.4]} 8. a4 {[%clk 0:04:40.2]}
8... a6 {[%clk 0:04:19.8]} 9. a5 {[%clk 0:04:38.5]} 9... Ba7 {[%clk 0:04:17.9]}
10. O-O {[%clk 0:04:38.1]} 10... d6 {[%clk 0:04:03.4]} 11. Kh1 {[%clk
0:04:34.3]} 11... Be6 {[%clk 0:03:44.6]} 12. Nbd2 {[%clk 0:04:29.2]} 12... d5
{[%clk 0:03:38.9]} 13. exd5 {[%clk 0:04:27.1]} 13... Nxd5 {[%clk 0:03:36.7]} 14.
Bb2 {[%clk 0:04:19.7]} 14... Nf4 {[%clk 0:03:28.7]} 15. Bxe6 {[%clk 0:04:11.3]}
15... Nxe6 {[%clk 0:03:23.9]} 16. Ne4 {[%clk 0:04:09.4]} 16... f5 {[%clk
0:03:18.3]} 17. Ng3 {[%clk 0:04:02.7]} 17... Nf4 {[%clk 0:03:01.7]} 18. Ne1
{[%clk 0:04:00.6]} 18... Qh4 {[%clk 0:02:38.8]} 19. Nf3 {[%clk 0:03:39]} 19...
Qf6 {[%clk 0:02:33.2]} 20. d4 {[%clk 0:03:28.7]} 20... e4 {[%clk 0:02:24.8]} 21.
Nh2 {[%clk 0:03:21.1]} 21... Nd3 {[%clk 0:02:16.6]} 22. Qe2 {[%clk 0:03:08.5]}
22... Rae8 {[%clk 0:02:00.3]} 23. Rfd1 {[%clk 0:02:56.5]} 23... Nxb2 {[%clk
0:01:38.1]} 24. Qxb2 {[%clk 0:02:54]} 24... f4 {[%clk 0:01:37]} 25. Ngf1 {[%clk
0:02:47]} 25... e3 {[%clk 0:01:27.7]} 26. fxe3 {[%clk 0:02:42.9]} 26... fxe3
{[%clk 0:01:26.3]} 27. Re1 {[%clk 0:02:37]} 27... Nxd4 {[%clk 0:01:14.9]} 28.
Rxe3 {[%clk 0:02:17]} 28... Qf4 {[%clk 0:00:40.3]} 29. Rxe8 {[%clk 0:02:04.7]}
29... Rxe8 {[%clk 0:00:37.9]} 30. Rd1 {[%clk 0:01:39.7]} 30... Ne2 {[%clk
0:00:35]} 31. Qd2 {[%clk 0:01:07.2]} 31... Qf2 {[%clk 0:00:32.2]} 32. Nf3 {[%clk
0:00:55.6]} 32... Be3 {[%clk 0:00:19.4]} 33. Qd5+ {[%clk 0:00:42.7]} 33... Kh8
{[%clk 0:00:16.3]} 34. Nxe3 {[%clk 0:00:24]} 1-0